fUSD/lending_fUSD_20240611
["ID","MTS","AMOUNT","RATE_DAILY","PERIOD"]
[329099519,1718103088247,-3561.35,0.00025753,2]
[329099520,1718103088259,-628.19,0.00025753,2]
[329099521,1718103088269,-447.143922,0.00025753,7]
[329099522,1718103088283,-447.143922,0.00025753,7]
[329099523,1718103088294,-372.050106,0.00025753,7]
[329099524,1718103088304,-365.76859755,0.00025753,2]
[329099525,1718103088315,-500.0,0.00025753,2]
[329099526,1718103088325,-372.050106,0.00025753,7]
[329099527,1718103088336,-500.0,0.00025753,2]
[329099528,1718103088347,-752.11,0.00025753,2]
[329099529,1718103088358,-655.83,0.00025753,2]
[329099530,1718103088370,-2058.77,0.00025753,2]
[329099531,1718103088382,-2260.46,0.00025753,2]
[329099532,1718103088394,-1588.0,0.00025753,2]
[329099533,1718103088404,-1174.18,0.00025753,2]
[329099534,1718103088415,-500.0,0.00025753,2]
[329099535,1718103088427,-236.590907,0.00025753,7]
[329099536,1718103088438,-236.590907,0.00025753,7]
[329099537,1718103088448,-1694.76,0.00025753,2]
[329099538,1718103088458,-803.31,0.00025753,2]
[329099539,1718103088470,-296.518875,0.00025753,7]
[329099540,1718103088480,-296.518875,0.00025753,7]
[329099541,1718103088491,-995.49,0.00025753,2]
[329099542,1718103088501,-500.0,0.00025753,2]
[329099543,1718103088512,-1020.06,0.00025753,2]
[329099544,1718103088522,-860.63,0.00025753,2]
[329099545,1718103088534,-151.0,0.00025753,7]
[329099546,1718103088544,-473.378943,0.00025753,7]
[329099547,1718103088554,-599.38,0.00025753,2]
[329099548,1718103088564,-473.378943,0.00025753,7]
[329099549,1718103088575,-940.8,0.00025753,2]
[329099550,1718103088585,-500.0,0.00025753,2]
[329099551,1718103088596,-1420.19,0.00025753,2]
[329099552,1718103088606,-2225.45,0.00025753,2]
[329099553,1718103088618,-2026.42,0.00025753,2]
[329099554,1718103088628,-2906.52,0.00025753,2]
[329099555,1718103088638,-500.0,0.00025753,2]
[329099556,1718103088649,-163.288509,0.00025753,7]
[329099557,1718103088660,-163.288509,0.00025753,7]
[329099558,1718103088671,-500.0,0.00025753,2]
[329099559,1718103088683,-500.0,0.00025753,2]
[329099560,1718103088694,-816.843791,0.00025753,7]
[329099561,1718103088705,-500.0,0.00025753,2]
[329099562,1718103088716,-500.0,0.00025753,2]
[329099563,1718103088728,-500.0,0.00025753,2]
[329099564,1718103088738,-816.843791,0.00025753,7]
[329099565,1718103088750,-500.0,0.00025753,2]
[329099566,1718103088762,-500.0,0.00025753,2]
[329099567,1718103088774,-821.93,0.00025753,2]
[329099568,1718103088786,-714.51,0.00025753,2]
[329099569,1718103088796,-500.0,0.00025753,2]
[329099570,1718103088807,-576.65,0.00025753,2]
[329099571,1718103088818,-500.0,0.00025753,2]
[329099572,1718103088828,-697.03,0.00025753,2]
[329099573,1718103088838,-500.0,0.00025753,2]
[329099574,1718103088848,-1049.071361,0.00025753,7]
[329099575,1718103088859,-520.77,0.00025753,2]
[329099576,1718103088870,-500.0,0.00025753,2]
[329099577,1718103088880,-500.0,0.00025753,2]
[329099578,1718103088891,-1049.071361,0.00025753,7]
[329099579,1718103088902,-644.63,0.00025753,2]
[329099580,1718103088913,-500.0,0.00025753,2]
[329099581,1718103088924,-500.0,0.00025753,2]
[329099582,1718103088934,-500.0,0.00025753,2]
[329099583,1718103088944,-167.36009946,0.00025753,2]
[329099584,1718103088954,-1518.18,0.00025753,2]
[329099585,1718103088964,-313.89740942,0.00025753,2]
[329099586,1718103088984,-6631.54,0.00025753,2]
[329099587,1718103088998,-500.0,0.00025753,2]
[329099588,1718103089009,-500.0,0.00025753,2]
[329099589,1718103089020,-1657.14818896,0.00025753,2]
[329099590,1718103089072,-444.88053548,0.00024794,2]
[329099591,1718103089234,-500.0,0.00024657,2]
[329099592,1718103089249,-399.06946452,0.00024794,2]
[329099593,1718103089259,-843.95,0.00024931,2]
[329099594,1718103089272,-1989.02181104,0.00025753,2]
[329099595,1718103089286,-1046.79,0.00025753,2]
[329099596,1718103089297,-595.03,0.00025753,2]
[329099597,1718103089308,-500.0,0.00025753,2]
[329099598,1718103089318,-678.28,0.00025753,2]
[329099599,1718103089328,-500.0,0.00025753,2]
[329099600,1718103089340,-500.0,0.00025753,2]
[329099601,1718103089352,-3246.46,0.00025753,2]
[329099602,1718103089363,-500.0,0.00025753,2]
[329099603,1718103089375,-1782.21,0.00025753,2]
[329099604,1718103089386,-500.0,0.00025753,2]
[329099605,1718103089398,-500.0,0.00025753,2]
[329099606,1718103089409,-1863.65,0.00025753,2]
[329099607,1718103089436,-986.96,0.00025753,2]
[329099608,1718103089465,-16665.07872444,0.00025753,2]
[329099609,1718103089703,-43463.53127556,0.00025753,2]
[329099610,1718103089721,-590.58,0.00025753,2]
[329099611,1718103089740,-704.25,0.00025753,2]
[329099612,1718103089755,-500.0,0.00025753,2]
[329099613,1718103089781,-3650.9,0.00025753,2]
[329099614,1718103089802,-1160.72,0.00025753,2]
[329099615,1718103089822,-500.0,0.00025753,2]
[329099616,1718103089847,-16093.83,0.00025753,2]
[329099617,1718103089877,-3600.94,0.00025753,2]
[329099618,1718103089903,-500.0,0.00025753,2]
[329099619,1718103089928,-719.54,0.00025753,2]
[329099620,1718103089952,-1052.76,0.00025753,2]
[329099621,1718103089974,-2155.0,0.00025753,2]
[329099622,1718103089998,-6544.77,0.00025753,2]
[329099623,1718103090019,-740.04,0.00025753,2]
[329099624,1718103090041,-1888.46,0.00025753,2]
[329099625,1718103090060,-2806.67,0.00025753,2]
[329099626,1718103090078,-1554.02,0.00025753,2]
[329099627,1718103090096,-500.0,0.00025753,2]
[329099628,1718103090114,-1798.56,0.00025753,2]
[329099629,1718103090131,-5181.24,0.00025753,2]
[329099630,1718103090148,-500.0,0.00025753,2]
[329099631,1718103090169,-648.83,0.00025753,2]
[329099632,1718103090186,-1550.43,0.00025753,2]
[329099633,1718103090202,-556.8,0.00025753,2]
[329099634,1718103090219,-5415.76,0.00025753,2]
[329099635,1718103090236,-2910.91,0.00025753,2]
[329099636,1718103090253,-2813.33,0.00025753,2]
[329099637,1718103090269,-5210.45,0.00025753,2]
[329099638,1718103090286,-2614.87,0.00025753,2]
[329099639,1718103090302,-2508.57,0.00025753,2]
[329099640,1718103090319,-524.87,0.00025753,2]
[329099641,1718103090336,-1490.4,0.00025753,2]
[329099642,1718103090352,-500.0,0.00025753,2]
[329099643,1718103090369,-4575.68,0.00025753,2]
[329099644,1718103090385,-1385.62,0.00025753,2]
[329099645,1718103090402,-23273.76,0.00025753,2]
[329099646,1718103090418,-2161.49,0.00025753,2]
[329099647,1718103090433,-3397.46,0.00025753,2]
[329099648,1718103090452,-836.93,0.00025753,2]
[329099649,1718103090469,-500.0,0.00025753,2]
[329099650,1718103090486,-809.74,0.00025753,2]
[329099651,1718103090503,-4475.39,0.00025753,2]
[329099652,1718103090519,-500.0,0.00025753,2]
[329099653,1718103090536,-1793.26,0.00025753,2]
[329099654,1718103090553,-500.0,0.00025753,2]
[329099655,1718103090569,-2264.18,0.00025753,2]
[329099656,1718103090586,-1991.54,0.00025753,2]
[329099657,1718103090602,-592.32,0.00025753,2]
[329099658,1718103090618,-1014.4,0.00025753,2]
[329099659,1718103090634,-516.68,0.00025753,2]
[329099660,1718103090650,-881.73,0.00025753,2]
[329099661,1718103090667,-2542.46,0.00025753,2]
[329099662,1718103090683,-6118.86,0.00025753,2]
[329099663,1718103090700,-4350.15,0.00025753,2]
[329099664,1718103090716,-12384.13,0.00025753,2]
[329099665,1718103090732,-500.0,0.00025753,2]
[329099666,1718103090748,-1210.98,0.00025753,2]
[329099667,1718103090764,-625.27,0.00025753,2]
[329099668,1718103090780,-661.12,0.00025753,2]
[329099669,1718103090798,-500.0,0.00025753,2]
[329099670,1718103090810,-500.48,0.00025753,2]
[329099671,1718103090821,-5976.04,0.00025753,2]
[329099672,1718103090833,-683.97,0.00025753,2]
[329099673,1718103090844,-1301.38,0.00025753,2]
[329099674,1718103090856,-518.11,0.00025753,2]
[329099675,1718103090867,-500.0,0.00025753,2]
[329099676,1718103090878,-20715.74,0.00025753,2]
[329099677,1718103090890,-1440.79,0.00025753,2]
[329099678,1718103090900,-7241.55,0.00025753,2]
[329099679,1718103090912,-4364.25,0.00025753,2]
[329099680,1718103090922,-4364.33,0.00025753,2]
[329099681,1718103090933,-1770.11,0.00025753,2]
[329099682,1718103090944,-1826.27,0.00025753,2]
[329099683,1718103090955,-8941.42,0.00025753,2]
[329099684,1718103090966,-572.84,0.00025753,2]
[329099685,1718103090979,-994.59,0.00025753,2]
[329099686,1718103090994,-542.08,0.00025753,2]
[329099687,1718103091005,-1968.25,0.00025753,2]
[329099688,1718103091016,-500.0,0.00025753,2]
[329099689,1718103091029,-2643.2,0.00025753,2]
[329099690,1718103091041,-554.66,0.00025753,2]
[329099691,1718103091052,-8077.47,0.00025753,2]
[329099692,1718103091065,-817.34,0.00025753,2]
[329099693,1718103091076,-2323.66,0.00025753,2]
[329099694,1718103091087,-500.0,0.00025753,2]
[329099695,1718103091099,-601.59,0.00025753,2]
[329099696,1718103091110,-500.0,0.00025753,2]
[329099697,1718103091121,-500.0,0.00025753,2]
[329099698,1718103091132,-500.0,0.00025753,2]
[329099699,1718103091145,-1573.7,0.00025753,2]
[329099700,1718103091160,-8616.33,0.00025753,2]
[329099701,1718103091170,-500.0,0.00025753,2]
[329099702,1718103091181,-3147.86,0.00025753,2]
[329099703,1718103091192,-4497.21,0.00025753,2]
[329099704,1718103091202,-500.0,0.00025753,2]
[329099705,1718103091213,-2963.67,0.00025753,2]
[329099706,1718103091224,-698.88,0.00025753,2]
[329099707,1718103091236,-591.74,0.00025753,2]
[329099708,1718103091247,-500.0,0.00025753,2]
[329099709,1718103091259,-784.8,0.00025753,2]
[329099710,1718103091269,-4263.91,0.00025753,2]
[329099711,1718103091784,-1163.96,0.00025753,2]
[329099712,1718103091824,-1298.72,0.00025753,2]
[329099713,1718103091850,-2951.75,0.00025753,2]
[329099714,1718103091866,-1048.93,0.00025753,2]
[329099715,1718103091876,-1034.57,0.00025753,2]
[329099716,1718103091887,-4183.7,0.00025753,2]
[329099717,1718103091898,-2041.21,0.00025753,2]
[329099718,1718103091910,-742.6,0.00025753,2]
[329099719,1718103091922,-500.0,0.00025753,2]
[329099720,1718103091933,-500.0,0.00025753,2]
[329099721,1718103091944,-5992.83,0.00025753,2]
[329099722,1718103091955,-500.0,0.00025753,2]
[329099723,1718103091967,-3291.99,0.00025753,2]
[329099724,1718103091978,-500.0,0.00025753,2]
[329099725,1718103091992,-7933.92,0.00025753,2]
[329099726,1718103092003,-1089.97,0.00025753,2]
[329099727,1718103092015,-3324.68,0.00025753,2]
[329099728,1718103092028,-6862.43,0.00025753,2]
[329099729,1718103092038,-500.0,0.00025753,2]
[329099730,1718103092048,-1657.61,0.00025753,2]
[329099731,1718103092058,-895.86,0.00025753,2]
[329099732,1718103092073,-1072.91,0.00025753,2]
[329099733,1718103092084,-661.87,0.00025753,2]
[329099734,1718103092096,-2637.47,0.00025753,2]
[329099735,1718103092107,-3348.17,0.00025753,2]
[329099736,1718103092117,-4278.21,0.00025753,2]
[329099737,1718103092128,-18970.56,0.00025753,2]
[329099738,1718103092139,-500.0,0.00025753,2]
[329099739,1718103092149,-500.0,0.00025753,2]
[329099740,1718103092166,-882.16,0.00025753,2]
[329099741,1718103092177,-1295.93,0.00025753,2]
[329099742,1718103092188,-7023.77,0.00025753,2]
[329099743,1718103092198,-1205.47,0.00025753,2]
[329099744,1718103092210,-4001.26,0.00025753,2]
[329099745,1718103092220,-2822.61,0.00025753,2]
[329099746,1718103092231,-506.35,0.00025753,2]
[329099747,1718103092241,-4627.88,0.00025753,2]
[329099748,1718103092251,-4081.07,0.00025753,2]
[329099749,1718103092261,-500.0,0.00025753,2]
[329099750,1718103092271,-852.86,0.00025753,2]
[329099751,1718103092282,-3114.11,0.00025753,2]
[329099752,1718103092293,-6951.93,0.00025753,2]
[329099753,1718103092303,-5063.42,0.00025753,2]
[329099754,1718103092313,-500.0,0.00025753,2]
[329099755,1718103092323,-4311.49,0.00025753,2]
[329099756,1718103092332,-558.29,0.00025753,2]
[329099757,1718103092347,-566.75,0.00025753,2]
[329099758,1718103092359,-1344.65,0.00025753,2]
[329099759,1718103092371,-3798.71,0.00025753,2]
[329099760,1718103092383,-872.84,0.00025753,2]
[329099761,1718103092394,-1542.55,0.00025753,2]
[329099762,1718103092405,-744.77,0.00025753,2]
[329099763,1718103092415,-3626.02,0.00025753,2]
[329099764,1718103092425,-500.0,0.00025753,2]
[329099765,1718103092437,-500.0,0.00025753,2]
[329099766,1718103092447,-6942.7,0.00025753,2]
[329099767,1718103092458,-2450.87,0.00025753,2]
[329099768,1718103092470,-1960.82,0.00025753,2]
[329099769,1718103092481,-755.68,0.00025753,2]
[329099770,1718103092491,-4453.97,0.00025753,2]
[329099771,1718103092502,-2383.54,0.00025753,2]
[329099772,1718103092513,-791.5,0.00025753,2]
[329099773,1718103092524,-3124.99,0.00025753,2]
[329099774,1718103092534,-1191.11,0.00025753,2]
[329099775,1718103092545,-840.19,0.00025753,2]
[329099776,1718103092555,-5836.12,0.00025753,2]
[329099777,1718103092566,-2312.07,0.00025753,2]
[329099778,1718103092577,-500.0,0.00025753,2]
[329099779,1718103092588,-3576.14,0.00025753,2]
[329099780,1718103092598,-500.0,0.00025753,2]
[329099781,1718103092609,-2101.15,0.00025753,2]
[329099782,1718103092620,-832.37,0.00025753,2]
[329099783,1718103092630,-545.76,0.00025753,2]
[329099784,1718103092641,-1433.52,0.00025753,2]
[329099785,1718103092651,-500.0,0.00025753,2]
[329099786,1718103092661,-972.32,0.00025753,2]
[329099787,1718103092673,-11542.35,0.00025753,2]
[329099788,1718103092684,-1776.98,0.00025753,2]
[329099789,1718103092695,-1230.55,0.00025753,2]
[329099790,1718103092706,-500.0,0.00025753,2]
[329099791,1718103092718,-1676.04,0.00025753,2]
[329099792,1718103092729,-1682.27,0.00025753,2]
[329099793,1718103092739,-11356.85,0.00025753,2]
[329099794,1718103092751,-500.0,0.00025753,2]
[329099795,1718103092762,-2862.17,0.00025753,2]
[329099796,1718103092773,-803.0,0.0002577,15]
[329099797,1718103092785,-875.0,0.0002577,15]
[329099798,1718103092796,-803.0,0.0002578,15]
[329099799,1718103092807,-875.0,0.0002578,15]
[329099800,1718103092818,-803.0,0.0002579,15]
[329099801,1718103092829,-875.0,0.0002579,15]
[329099802,1718103092840,-173.69961228,0.0002579,2]
[329099803,1718103092852,-238.42,0.00025844,2]
[329099804,1718103092862,-151.0,0.0002589,7]
[329099805,1718103092873,-1224.59,0.0002589,2]
[329099806,1718103092883,-1012.23,0.0002589,2]
[329099807,1718103092894,-500.0,0.0002589,2]
[329099808,1718103092904,-527.09,0.0002589,2]
[329099809,1718103092915,-151.0,0.0002589,7]
[329099810,1718103092925,-151.0,0.0002589,7]
[329099811,1718103092935,-719.45,0.0002589,2]
[329099812,1718103092945,-500.0,0.0002589,2]
[329099813,1718103092957,-1460.05,0.0002589,2]
[329099814,1718103092968,-1289.19,0.0002589,2]
[329099815,1718103092979,-500.0,0.0002589,2]
[329099816,1718103092993,-1187.92,0.0002589,2]
[329099817,1718103093003,-691.71,0.0002589,2]
[329099818,1718103093013,-480.0,0.0002589,2]
[329099819,1718103093024,-1589.91,0.0002589,2]
[329099820,1718103093037,-569.17,0.0002589,2]
[329099821,1718103093048,-500.0,0.0002589,2]
[329099822,1718103093058,-500.0,0.0002589,2]
[329099823,1718103093071,-151.0,0.0002589,7]
[329099824,1718103093082,-1922.15,0.0002589,2]
[329099825,1718103093094,-1030.13,0.0002589,2]
[329099826,1718103093105,-500.0,0.0002589,2]
[329099827,1718103093116,-1616.22,0.0002589,2]
[329099828,1718103093126,-3561.35,0.0002589,2]
[329099829,1718103093137,-628.19,0.0002589,2]
[329099830,1718103093148,-447.143922,0.0002589,7]
[329099831,1718103093162,-447.143922,0.0002589,7]
[329099832,1718103093173,-372.050106,0.0002589,7]
[329099833,1718103093184,-500.0,0.0002589,2]
[329099834,1718103093195,-372.050106,0.0002589,7]
[329099835,1718103093206,-500.0,0.0002589,2]
[329099836,1718103093217,-752.11,0.0002589,2]
[329099837,1718103093227,-655.83,0.0002589,2]
[329099838,1718103093238,-2058.77,0.0002589,2]
[329099839,1718103093249,-2260.46,0.0002589,2]
[329099840,1718103093260,-1588.0,0.0002589,2]
[329099841,1718103093271,-1174.18,0.0002589,2]
[329099842,1718103093282,-500.0,0.0002589,2]
[329099843,1718103093293,-236.590907,0.0002589,7]
[329099844,1718103093305,-236.590911,0.0002589,7]
[329099845,1718103093316,-1694.76,0.0002589,2]
[329099846,1718103093328,-803.31,0.0002589,2]
[329099847,1718103093338,-296.518875,0.0002589,7]
[329099848,1718103093351,-296.518881,0.0002589,7]
[329099849,1718103093361,-995.49,0.0002589,2]
[329099850,1718103093371,-500.0,0.0002589,2]
[329099851,1718103093382,-1020.06,0.0002589,2]
[329099852,1718103093393,-860.63,0.0002589,2]
[329099853,1718103093403,-151.0,0.0002589,7]
[329099854,1718103093414,-473.378943,0.0002589,7]
[329099855,1718103093425,-599.38,0.0002589,2]
[329099856,1718103093435,-473.378938,0.0002589,7]
[329099857,1718103093446,-940.8,0.0002589,2]
[329099858,1718103093456,-500.0,0.0002589,2]
[329099859,1718103093467,-1420.19,0.0002589,2]
[329099860,1718103093478,-2225.45,0.0002589,2]
[329099861,1718103093488,-2026.42,0.0002589,2]
[329099862,1718103093500,-2906.52,0.0002589,2]
[329099863,1718103093511,-500.0,0.0002589,2]
[329099864,1718103093522,-163.288509,0.0002589,7]
[329099865,1718103093533,-163.288513,0.0002589,7]
[329099866,1718103093543,-500.0,0.0002589,2]
[329099867,1718103093554,-273.72564916,0.0002589,2]
[329099868,1718103093564,-816.843791,0.0002589,7]
[329099869,1718103093576,-500.0,0.0002589,2]
[329099870,1718103093587,-500.0,0.0002589,2]
[329099871,1718103093598,-500.0,0.0002589,2]
[329099872,1718103093609,-816.843782,0.0002589,7]
[329099873,1718103093622,-500.0,0.0002589,2]
[329099874,1718103093633,-500.0,0.0002589,2]
[329099875,1718103093644,-821.93,0.0002589,2]
[329099876,1718103093656,-714.51,0.0002589,2]
[329099877,1718103093666,-535.54562882,0.0002589,2]
[329099878,1718103093677,-576.65,0.0002589,2]
[329099879,1718103093689,-500.0,0.0002589,2]
[329099880,1718103093700,-697.03,0.0002589,2]
[329099881,1718103093712,-500.0,0.0002589,2]
[329099882,1718103093723,-1049.071361,0.0002589,7]
[329099883,1718103093735,-520.77,0.0002589,2]
[329099884,1718103093747,-500.0,0.0002589,2]
[329099885,1718103093758,-500.0,0.0002589,2]
[329099886,1718103093770,-1049.071359,0.0002589,7]
[329099887,1718103093783,-644.63,0.0002589,2]
[329099888,1718103093796,-500.0,0.0002589,2]
[329099889,1718103093807,-500.0,0.0002589,2]
[329099890,1718103093818,-500.0,0.0002589,2]
[329099891,1718103093830,-1518.18,0.0002589,2]
[329099892,1718103093841,-6631.54,0.0002589,2]
[329099893,1718103093851,-500.0,0.0002589,2]
[329099894,1718103093863,-500.0,0.0002589,2]
[329099895,1718103093875,-3646.17,0.0002589,2]
[329099896,1718103093886,-1046.79,0.0002589,2]
[329099897,1718103093899,-595.03,0.0002589,2]
[329099898,1718103093910,-500.0,0.0002589,2]
[329099899,1718103093922,-678.28,0.0002589,2]
[329099900,1718103093932,-500.0,0.0002589,2]
[329099901,1718103093945,-383.50558832,0.0002589,2]
[329099902,1718103093957,-3246.46,0.0002589,2]
[329099903,1718103093969,-500.0,0.0002589,2]
[329099904,1718103093980,-1782.21,0.0002589,2]
[329099905,1718103093997,-500.0,0.0002589,2]
[329099906,1718103094007,-500.0,0.0002589,2]
[329099907,1718103094018,-1863.65,0.0002589,2]
[329099908,1718103094033,-986.96,0.0002589,2]
[329099909,1718103094044,-60128.61,0.0002589,2]
[329099910,1718103094055,-590.58,0.0002589,2]
[329099911,1718103094067,-704.25,0.0002589,2]
[329099912,1718103094079,-500.0,0.0002589,2]
[329099913,1718103094090,-3650.9,0.0002589,2]
[329099914,1718103094102,-1160.72,0.0002589,2]
[329099915,1718103094115,-16093.83,0.0002589,2]
[329099916,1718103094127,-500.0,0.0002589,2]
[329099917,1718103094139,-3600.94,0.0002589,2]
[329099918,1718103094150,-500.0,0.0002589,2]
[329099919,1718103094166,-719.54,0.0002589,2]
[329099920,1718103094178,-1052.76,0.0002589,2]
[329099921,1718103094189,-2155.0,0.0002589,2]
[329099922,1718103094202,-6544.77,0.0002589,2]
[329099923,1718103094214,-740.04,0.0002589,2]
[329099924,1718103094225,-1888.46,0.0002589,2]
[329099925,1718103094236,-2806.67,0.0002589,2]
[329099926,1718103094248,-1554.02,0.0002589,2]
[329099927,1718103094259,-500.0,0.0002589,2]
[329099928,1718103094270,-1798.56,0.0002589,2]
[329099929,1718103094280,-5181.24,0.0002589,2]
[329099930,1718103094294,-500.0,0.0002589,2]
[329099931,1718103094305,-648.83,0.0002589,2]
[329099932,1718103094316,-1550.43,0.0002589,2]
[329099933,1718103094328,-556.8,0.0002589,2]
[329099934,1718103094339,-5415.76,0.0002589,2]
[329099935,1718103094349,-2910.91,0.0002589,2]
[329099936,1718103094360,-2813.33,0.0002589,2]
[329099937,1718103094370,-5210.45,0.0002589,2]
[329099938,1718103094381,-2614.87,0.0002589,2]
[329099939,1718103094392,-2508.57,0.0002589,2]
[329099940,1718103094403,-524.87,0.0002589,2]
[329099941,1718103094415,-1490.4,0.0002589,2]
[329099942,1718103094425,-500.0,0.0002589,2]
[329099943,1718103094436,-4575.68,0.0002589,2]
[329099944,1718103094449,-1385.62,0.0002589,2]
[329099945,1718103094461,-23273.76,0.0002589,2]
[329099946,1718103094472,-2161.49,0.0002589,2]
[329099947,1718103094483,-3397.46,0.0002589,2]
[329099948,1718103094494,-836.93,0.0002589,2]
[329099949,1718103094506,-500.0,0.0002589,2]
[329099950,1718103094518,-809.74,0.0002589,2]
[329099951,1718103094529,-4475.39,0.0002589,2]
[329099952,1718103094542,-164.04608506,0.0002589,2]
[329099953,1718103094553,-1793.26,0.0002589,2]
[329099954,1718103094565,-500.0,0.0002589,2]
[329099955,1718103094576,-2264.18,0.0002589,2]
[329099956,1718103094586,-1991.54,0.0002589,2]
[329099957,1718103094599,-592.32,0.0002589,2]
[329099958,1718103094610,-1014.4,0.0002589,2]
[329099959,1718103094621,-881.73,0.0002589,2]
[329099960,1718103094632,-516.68,0.0002589,2]
[329099961,1718103094643,-2542.46,0.0002589,2]
[329099962,1718103094654,-6118.86,0.0002589,2]
[329099963,1718103094666,-4350.15,0.0002589,2]
[329099964,1718103094679,-12384.13,0.0002589,2]
[329099965,1718103094690,-500.0,0.0002589,2]
[329099966,1718103094701,-1210.98,0.0002589,2]
[329099967,1718103094712,-625.27,0.0002589,2]
[329099968,1718103094723,-661.12,0.0002589,2]
[329099969,1718103094734,-500.48,0.0002589,2]
[329099970,1718103094745,-5976.04,0.0002589,2]
[329099971,1718103094755,-683.97,0.0002589,2]
[329099972,1718103094766,-1301.38,0.0002589,2]
[329099973,1718103094777,-518.11,0.0002589,2]
[329099974,1718103094790,-500.0,0.0002589,2]
[329099975,1718103094800,-20715.74,0.0002589,2]
[329099976,1718103094812,-436.84877317,0.0002589,2]
[329099977,1718103094834,-1003.94122683,0.0002589,2]
[329099978,1718103094845,-264.44379176,0.0002589,2]
[329099979,1718103095626,-500.0,0.00024794,2]
[329099980,1718103095636,-302.64257861,0.00024931,2]
[329099981,1718103095649,-197.35742139,0.00024931,2]
[329099982,1718103095660,-843.95,0.00025068,2]
[329099983,1718103095670,-843.95,0.00025205,2]
[329099984,1718103095683,-6977.10620824,0.0002589,2]
[329099985,1718103095695,-4364.25,0.0002589,2]
[329099986,1718103095706,-4364.33,0.0002589,2]
[329099987,1718103095718,-1770.11,0.0002589,2]
[329099988,1718103095730,-1826.27,0.0002589,2]
[329099989,1718103095741,-8941.42,0.0002589,2]
[329099990,1718103095752,-572.84,0.0002589,2]
[329099991,1718103095763,-994.59,0.0002589,2]
[329099992,1718103095773,-542.08,0.0002589,2]
[329099993,1718103095784,-1968.25,0.0002589,2]
[329099994,1718103095794,-500.0,0.0002589,2]
[329099995,1718103095806,-2643.2,0.0002589,2]
[329099996,1718103095817,-554.66,0.0002589,2]
[329099997,1718103095827,-8077.47,0.0002589,2]
[329099998,1718103095838,-817.34,0.0002589,2]
[329099999,1718103095851,-2323.66,0.0002589,2]
[329100000,1718103095863,-500.0,0.0002589,2]
[329100001,1718103095874,-601.59,0.0002589,2]
[329100002,1718103095886,-500.0,0.0002589,2]
[329100003,1718103095902,-500.0,0.0002589,2]
[329100004,1718103095914,-605.37693748,0.0002589,2]
[329100005,1718103095925,-1573.7,0.0002589,2]
[329100006,1718103095935,-8616.33,0.0002589,2]
[329100007,1718103095947,-500.0,0.0002589,2]
[329100008,1718103095958,-3147.86,0.0002589,2]
[329100009,1718103095968,-4497.21,0.0002589,2]
[329100010,1718103095977,-500.0,0.0002589,2]
[329100011,1718103095993,-2963.67,0.0002589,2]
[329100012,1718103096005,-698.88,0.0002589,2]
[329100013,1718103096016,-591.74,0.0002589,2]
[329100014,1718103096028,-500.0,0.0002589,2]
[329100015,1718103096042,-784.8,0.0002589,2]
[329100016,1718103096053,-4263.91,0.0002589,2]
[329100017,1718103096064,-1163.96,0.0002589,2]
[329100018,1718103096076,-1298.72,0.0002589,2]